[Event "December 5 Early 2023"]
[Site "https://www.chess.com"]
[Date "2023.12.05"]
[Round "8"]
[White "Henriquez Villagra, Cristobal"]
[Black "Le, Tuan Minh"]
[Result "0-1"]
[Board "2"]
[TimeControl "180+1"]
[WhiteFideId "3409350"]
[BlackFideId "12401153"]
[WhiteElo "2982"]
[BlackElo "3074"]
[WhiteTeam "CHI"]
[BlackTeam "VIE"]
[WhiteClock "0:01:07"]
[BlackClock "0:01:35"]

1. e4 {[%clk 0:03:00]}  e5 {[%clk 0:02:55]} 2. Nf3 {[%clk 0:02:59]}  Nc6 {[%clk 0:02:55]} 3. Bc4 {[%clk 0:03:00]}  Bc5 {[%clk 0:02:55]} 4. c3 {[%clk 0:02:59]}  Nf6 {[%clk 0:02:54]} 5. d3 {[%clk 0:02:59]}  d6 {[%clk 0:02:55]} 6. Nbd2 {[%clk 0:02:53]}  a6 {[%clk 0:02:54]} 7. a4 {[%clk 0:02:52]}  Ba7 {[%clk 0:02:53]} 8. O-O {[%clk 0:02:49]}  O-O {[%clk 0:02:51]} 9. h3 {[%clk 0:02:48]}  Ne7 {[%clk 0:02:47]} 10. b4 {[%clk 0:02:46]}  Ng6 {[%clk 0:02:47]} 11. Ra2 {[%clk 0:02:46]}  c6 {[%clk 0:02:46]} 12. Bb3 {[%clk 0:02:35]}  d5 {[%clk 0:02:44]} 13. Bc2 {[%clk 0:01:56]}  Re8 {[%clk 0:02:40]} 14. Nb3 {[%clk 0:01:52]}  h6 {[%clk 0:02:38]} 15. a5 {[%clk 0:01:50]}  Be6 {[%clk 0:02:36]} 16. Rb2 {[%clk 0:01:49]}  Qd6 {[%clk 0:02:20]} 17. Qe2 {[%clk 0:01:43]}  Rad8 {[%clk 0:02:16]} 18. Re1 {[%clk 0:01:43]}  Nh5 {[%clk 0:01:44]} 19. Qf1 {[%clk 0:01:07]}  Ng3 {[%clk 0:01:35]} 0-1

[Event "December 5 Early 2023"]
[Site "https://www.chess.com"]
[Date "2023.12.05"]
[Round "8"]
[White "Bortnyk, Olexandr"]
[Black "Shimanov, Aleksandr"]
[Result "0-1"]
[Board "4"]
[TimeControl "180+1"]
[WhiteFideId "14120828"]
[BlackFideId "4198603"]
[WhiteElo "3079"]
[BlackElo "2963"]
[WhiteTeam "UKR"]
[BlackTeam "RUS"]
[WhiteClock "0:00:00"]
[BlackClock "0:00:03"]

1. e4 {[%clk 0:03:00]}  e6 {[%clk 0:02:59]} 2. Nf3 {[%clk 0:03:00]}  d5 {[%clk 0:02:59]} 3. e5 {[%clk 0:03:01]}  c5 {[%clk 0:02:57]} 4. d4 {[%clk 0:03:02]}  Nc6 {[%clk 0:02:55]} 5. Bd3 {[%clk 0:03:02]}  Nge7 {[%clk 0:02:43]} 6. O-O {[%clk 0:03:01]}  cxd4 {[%clk 0:02:40]} 7. Bf4 {[%clk 0:03:01]}  Ng6 {[%clk 0:02:17]} 8. Bg3 {[%clk 0:03:01]}  Be7 {[%clk 0:02:17]} 9. Re1 {[%clk 0:03:00]}  O-O {[%clk 0:02:17]} 10. Nbd2 {[%clk 0:03:00]}  Bd7 {[%clk 0:02:16]} 11. Nb3 {[%clk 0:03:01]}  Qb6 {[%clk 0:02:16]} 12. a4 {[%clk 0:03:01]}  a5 {[%clk 0:02:16]} 13. h4 {[%clk 0:02:59]}  Bb4 {[%clk 0:01:55]} 14. h5 {[%clk 0:02:30]}  Nge7 {[%clk 0:01:53]} 15. Re2 {[%clk 0:02:24]}  h6 {[%clk 0:01:50]} 16. Nfxd4 {[%clk 0:02:18]}  Nxd4 {[%clk 0:01:50]} 17. Nxd4 {[%clk 0:02:19]}  Nc6 {[%clk 0:01:50]} 18. Nb5 {[%clk 0:02:14]}  Na7 {[%clk 0:01:43]} 19. Nd4 {[%clk 0:01:47]}  Nc6 {[%clk 0:01:42]} 20. Nf3 {[%clk 0:01:47]}  Ne7 {[%clk 0:01:33]} 21. Bh4 {[%clk 0:01:43]}  Nf5 {[%clk 0:01:24]} 22. Bxf5 {[%clk 0:01:40]}  exf5 {[%clk 0:01:25]} 23. Qxd5 {[%clk 0:01:34]}  Be6 {[%clk 0:01:25]} 24. Qd1 {[%clk 0:01:05]}  Rfc8 {[%clk 0:01:18]} 25. c3 {[%clk 0:01:03]}  Bc5 {[%clk 0:01:18]} 26. Rd2 {[%clk 0:01:00]}  Qc7 {[%clk 0:01:09]} 27. Qc2 {[%clk 0:00:53]}  Qb6 {[%clk 0:01:08]} 28. Qd3 {[%clk 0:00:48]}  Qc6 {[%clk 0:00:54]} 29. Nd4 {[%clk 0:00:41]}  Bxd4 {[%clk 0:00:54]} 30. Qxd4 {[%clk 0:00:42]}  b5 {[%clk 0:00:53]} 31. Be7 {[%clk 0:00:39]}  Rab8 {[%clk 0:00:47]} 32. Bd6 {[%clk 0:00:39]}  Rb7 {[%clk 0:00:47]} 33. axb5 {[%clk 0:00:34]}  Rxb5 {[%clk 0:00:48]} 34. b4 {[%clk 0:00:34]}  axb4 {[%clk 0:00:48]} 35. cxb4 {[%clk 0:00:35]}  Qb7 {[%clk 0:00:31]} 36. Bc5 {[%clk 0:00:34]}  Qc6 {[%clk 0:00:26]} 37. Qd6 {[%clk 0:00:22]}  Qe4 {[%clk 0:00:23]} 38. Qd4 {[%clk 0:00:17]}  Qc6 {[%clk 0:00:21]} 39. f3 {[%clk 0:00:17]}  Rbb8 {[%clk 0:00:21]} 40. Ra7 {[%clk 0:00:17]}  Qb5 {[%clk 0:00:17]} 41. Kf2 {[%clk 0:00:14]}  Kh7 {[%clk 0:00:16]} 42. Qd3 {[%clk 0:00:10]}  Qc6 {[%clk 0:00:09]} 43. Qa6 {[%clk 0:00:07]}  Qe8 {[%clk 0:00:07]} 44. Re7 {[%clk 0:00:05]}  Qg8 {[%clk 0:00:06]} 45. Rd6 {[%clk 0:00:03]}  Ra8 {[%clk 0:00:06]} 46. Qd3 {[%clk 0:00:03]}  Ra2+ {[%clk 0:00:06]} 47. Kg3 {[%clk 0:00:04]}  Kh8 {[%clk 0:00:07]} 48. Qe3 {[%clk 0:00:03]}  Rb2 {[%clk 0:00:07]} 49. Rd2 {[%clk 0:00:03]}  Rb3 {[%clk 0:00:07]} 50. Qf4 {[%clk 0:00:02]}  Ra8 {[%clk 0:00:06]} 51. Rc7 {[%clk 0:00:01]}  Qb8 {[%clk 0:00:05]} 52. Re7 {[%clk 0:00:01]}  Qb5 {[%clk 0:00:05]} 53. Qd4 {[%clk 0:00:01]}  Qf1 {[%clk 0:00:05]} 54. Qd8+ {[%clk 0:00:01]}  Rxd8 {[%clk 0:00:04]} 55. Rxd8+ {[%clk 0:00:02]}  Kh7 {[%clk 0:00:04]} 56. Ree8 {[%clk 0:00:03]}  Qe1+ {[%clk 0:00:04]} 57. Bf2 {[%clk 0:00:02]}  Qxe5+ {[%clk 0:00:04]} 58. Kh3 {[%clk 0:00:02]}  g5 {[%clk 0:00:05]} 59. hxg6+ {[%clk 0:00:02]}  Kxg6 {[%clk 0:00:04]} 60. Bd4 {[%clk 0:00:02]}  Qe1 {[%clk 0:00:03]} 61. Rg8+ {[%clk 0:00:00]}  Kh5 {[%clk 0:00:03]} 0-1

[Event "December 5 Early 2023"]
[Site "https://www.chess.com"]
[Date "2023.12.05"]
[Round "8"]
[White "Oparin, Grigoriy"]
[Black "Drygalov, Sergey"]
[Result "0-1"]
[Board "5"]
[TimeControl "180+1"]
[WhiteFideId "24125890"]
[BlackFideId "24171743"]
[WhiteElo "3064"]
[BlackElo "2959"]
[WhiteTeam "USA"]
[BlackTeam "RUS"]
[WhiteClock "0:00:16"]
[BlackClock "0:00:56"]

1. Nf3 {[%clk 0:03:00]}  d5 {[%clk 0:02:59]} 2. g3 {[%clk 0:03:01]}  g6 {[%clk 0:03:00]} 3. c4 {[%clk 0:03:01]}  dxc4 {[%clk 0:03:01]} 4. Na3 {[%clk 0:03:00]}  Nc6 {[%clk 0:02:58]} 5. Nxc4 {[%clk 0:03:00]}  Bg7 {[%clk 0:02:59]} 6. d3 {[%clk 0:03:00]}  e5 {[%clk 0:02:59]} 7. Bd2 {[%clk 0:03:00]}  Nge7 {[%clk 0:03:00]} 8. Bg2 {[%clk 0:02:59]}  O-O {[%clk 0:03:00]} 9. b4 {[%clk 0:02:58]}  Nf5 {[%clk 0:02:49]} 10. O-O {[%clk 0:02:49]}  Ncd4 {[%clk 0:02:48]} 11. Nfxe5 {[%clk 0:02:42]}  Re8 {[%clk 0:02:04]} 12. f4 {[%clk 0:02:42]}  f6 {[%clk 0:02:02]} 13. e3 {[%clk 0:02:18]}  fxe5 {[%clk 0:01:57]} 14. exd4 {[%clk 0:02:19]}  exf4 {[%clk 0:01:51]} 15. Rxf4 {[%clk 0:02:07]}  Bxd4+ {[%clk 0:01:51]} 16. Kh1 {[%clk 0:02:07]}  Bxa1 {[%clk 0:01:51]} 17. Qxa1 {[%clk 0:02:08]}  Qxd3 {[%clk 0:01:51]} 18. g4 {[%clk 0:01:50]}  Be6 {[%clk 0:01:24]} 19. gxf5 {[%clk 0:01:36]}  Bxc4 {[%clk 0:01:23]} 20. Rd4 {[%clk 0:01:18]}  Qe2 {[%clk 0:01:13]} 21. fxg6 {[%clk 0:01:18]}  hxg6 {[%clk 0:01:13]} 22. Rh4 {[%clk 0:01:02]}  Re5 {[%clk 0:00:56]} 23. Rh3 {[%clk 0:00:16]} 0-1

[Event "December 5 Early 2023"]
[Site "https://www.chess.com"]
[Date "2023.12.05"]
[Round "8"]
[White "Grigoriants, Sergey"]
[Black "Duda, Jan-Krzysztof"]
[Result "0-1"]
[Board "6"]
[TimeControl "180+1"]
[WhiteFideId "4130804"]
[BlackFideId "1170546"]
[WhiteElo "2944"]
[BlackElo "3061"]
[WhiteTeam "HUN"]
[BlackTeam "POL"]
[WhiteClock "0:00:03"]
[BlackClock "0:00:07"]

1. d4 {[%clk 0:03:00]}  Nf6 {[%clk 0:03:00]} 2. c4 {[%clk 0:03:00]}  e6 {[%clk 0:03:01]} 3. Bg5 {[%clk 0:03:00]}  h6 {[%clk 0:02:55]} 4. Bh4 {[%clk 0:02:59]}  c5 {[%clk 0:02:47]} 5. d5 {[%clk 0:02:56]}  Qa5+ {[%clk 0:02:43]} 6. Nc3 {[%clk 0:02:43]}  Ne4 {[%clk 0:02:40]} 7. Qd3 {[%clk 0:02:25]}  Nxc3 {[%clk 0:02:34]} 8. bxc3 {[%clk 0:02:24]}  d6 {[%clk 0:02:27]} 9. Nf3 {[%clk 0:01:57]}  g5 {[%clk 0:02:22]} 10. Bg3 {[%clk 0:01:57]}  Bg7 {[%clk 0:02:22]} 11. Rc1 {[%clk 0:01:52]}  e5 {[%clk 0:02:20]} 12. e4 {[%clk 0:01:41]}  Qxa2 {[%clk 0:02:15]} 13. Be2 {[%clk 0:01:37]}  Qa5 {[%clk 0:02:15]} 14. h4 {[%clk 0:01:33]}  Qd8 {[%clk 0:01:54]} 15. hxg5 {[%clk 0:00:59]}  hxg5 {[%clk 0:01:55]} 16. Rxh8+ {[%clk 0:00:59]}  Bxh8 {[%clk 0:01:56]} 17. Kd2 {[%clk 0:00:59]}  g4 {[%clk 0:01:19]} 18. Rh1 {[%clk 0:00:58]}  Bf6 {[%clk 0:01:20]} 19. Ne1 {[%clk 0:00:56]}  Bg5+ {[%clk 0:00:57]} 20. Kc2 {[%clk 0:00:35]}  Qf6 {[%clk 0:00:47]} 21. Qd1 {[%clk 0:00:35]}  Bd7 {[%clk 0:00:34]} 22. Kd3 {[%clk 0:00:35]}  Kd8 {[%clk 0:00:32]} 23. Bxg4 {[%clk 0:00:34]}  Kc7 {[%clk 0:00:33]} 24. Nc2 {[%clk 0:00:33]}  Qg6 {[%clk 0:00:28]} 25. Bxd7 {[%clk 0:00:25]}  Nxd7 {[%clk 0:00:29]} 26. Qh5 {[%clk 0:00:23]}  Qf6 {[%clk 0:00:23]} 27. Qg4 {[%clk 0:00:22]}  a6 {[%clk 0:00:19]} 28. Na3 {[%clk 0:00:12]}  Rg8 {[%clk 0:00:17]} 29. Rh7 {[%clk 0:00:09]}  Qe7 {[%clk 0:00:08]} 30. Qf5 {[%clk 0:00:09]}  Nf6 {[%clk 0:00:08]} 31. Rh1 {[%clk 0:00:09]}  Qe8 {[%clk 0:00:08]} 32. Nc2 {[%clk 0:00:04]}  b5 {[%clk 0:00:08]} 33. Ne3 {[%clk 0:00:03]}  Rg6 {[%clk 0:00:05]} 34. Ra1 {[%clk 0:00:02]}  Kb6 {[%clk 0:00:05]} 35. Qf3 {[%clk 0:00:02]}  Bxe3 {[%clk 0:00:04]} 36. Qxe3 {[%clk 0:00:03]}  Rg4 {[%clk 0:00:04]} 37. Qf3 {[%clk 0:00:02]}  bxc4+ {[%clk 0:00:04]} 38. Kc2 {[%clk 0:00:01]}  Rg6 {[%clk 0:00:03]} 39. Rb1+ {[%clk 0:00:02]}  Kc7 {[%clk 0:00:03]} 40. Bh4 {[%clk 0:00:03]}  Nd7 {[%clk 0:00:03]} 41. Ra1 {[%clk 0:00:02]}  Nb8 {[%clk 0:00:03]} 42. Qe2 {[%clk 0:00:02]}  Qb5 {[%clk 0:00:03]} 43. Bg3 {[%clk 0:00:02]}  Qb3+ {[%clk 0:00:03]} 44. Kc1 {[%clk 0:00:02]}  Qxc3+ {[%clk 0:00:04]} 45. Kb1 {[%clk 0:00:03]}  Rh6 {[%clk 0:00:03]} 46. Ka2 {[%clk 0:00:02]}  Rg6 {[%clk 0:00:04]} 47. Rb1 {[%clk 0:00:02]}  Qa5+ {[%clk 0:00:04]} 48. Kb2 {[%clk 0:00:02]}  Qb4+ {[%clk 0:00:05]} 49. Kc2 {[%clk 0:00:03]}  Qa4+ {[%clk 0:00:05]} 50. Kc3 {[%clk 0:00:03]}  Qa3+ {[%clk 0:00:05]} 51. Kc2 {[%clk 0:00:04]}  Qa4+ {[%clk 0:00:05]} 52. Kb2 {[%clk 0:00:04]}  Nd7 {[%clk 0:00:05]} 53. Qe3 {[%clk 0:00:04]}  Nb6 {[%clk 0:00:05]} 54. Ra1 {[%clk 0:00:03]}  Qb4+ {[%clk 0:00:06]} 55. Kc2 {[%clk 0:00:03]}  a5 {[%clk 0:00:06]} 56. Qf3 {[%clk 0:00:02]}  Rg7 {[%clk 0:00:06]} 57. Qf6 {[%clk 0:00:02]}  Qb3+ {[%clk 0:00:06]} 58. Kd2 {[%clk 0:00:02]}  Qb2+ {[%clk 0:00:06]} 59. Ke3 {[%clk 0:00:03]}  Qc3+ {[%clk 0:00:06]} 60. Ke2 {[%clk 0:00:03]}  Qd3+ {[%clk 0:00:06]} 61. Ke1 {[%clk 0:00:03]}  Rh7 {[%clk 0:00:07]} 62. Qf5 {[%clk 0:00:03]}  Rh1# {[%clk 0:00:07]} 0-1

[Event "December 5 Early 2023"]
[Site "https://www.chess.com"]
[Date "2023.12.05"]
[Round "8"]
[White "Zemlyanskii, Ivan"]
[Black "Tran, Tuan Minh"]
[Result "1-0"]
[Board "7"]
[TimeControl "180+1"]
[WhiteFideId "24249971"]
[BlackFideId "12401820"]
[WhiteElo "3022"]
[BlackElo "2944"]
[WhiteTeam "RUS"]
[BlackTeam "VIE"]
[WhiteClock "0:00:03"]
[BlackClock "0:00:05"]

1. d4 {[%clk 0:03:00]}  Nf6 {[%clk 0:03:00]} 2. c4 {[%clk 0:03:01]}  e6 {[%clk 0:03:00]} 3. Bf4 {[%clk 0:03:01]}  b6 {[%clk 0:02:59]} 4. Nc3 {[%clk 0:03:00]}  Bb7 {[%clk 0:03:00]} 5. e3 {[%clk 0:02:59]}  Bb4 {[%clk 0:03:00]} 6. Ne2 {[%clk 0:02:59]}  Ne4 {[%clk 0:03:00]} 7. Qc2 {[%clk 0:02:53]}  g5 {[%clk 0:02:48]} 8. Bg3 {[%clk 0:02:47]}  Qf6 {[%clk 0:02:15]} 9. a3 {[%clk 0:02:28]}  Bxc3+ {[%clk 0:02:06]} 10. Nxc3 {[%clk 0:02:28]}  Nxg3 {[%clk 0:02:06]} 11. hxg3 {[%clk 0:02:27]}  h5 {[%clk 0:02:06]} 12. O-O-O {[%clk 0:02:13]}  Nc6 {[%clk 0:02:01]} 13. Bd3 {[%clk 0:02:05]}  O-O-O {[%clk 0:01:59]} 14. Be4 {[%clk 0:02:03]}  Kb8 {[%clk 0:01:58]} 15. Rh2 {[%clk 0:01:53]}  Rh6 {[%clk 0:01:54]} 16. Rdh1 {[%clk 0:01:28]}  Rdh8 {[%clk 0:01:54]} 17. Qe2 {[%clk 0:01:29]}  g4 {[%clk 0:01:45]} 18. f4 {[%clk 0:01:12]}  gxf3 {[%clk 0:01:38]} 19. gxf3 {[%clk 0:01:13]}  Qg7 {[%clk 0:01:34]} 20. f4 {[%clk 0:01:03]}  Ne7 {[%clk 0:01:30]} 21. d5 {[%clk 0:00:41]}  Ng8 {[%clk 0:00:30]} 22. Rxh5 {[%clk 0:00:31]}  Rxh5 {[%clk 0:00:31]} 23. Rxh5 {[%clk 0:00:31]}  Rxh5 {[%clk 0:00:31]} 24. Qxh5 {[%clk 0:00:32]}  Nf6 {[%clk 0:00:32]} 25. Qh4 {[%clk 0:00:22]}  a6 {[%clk 0:00:18]} 26. Bf3 {[%clk 0:00:21]}  Qg6 {[%clk 0:00:16]} 27. e4 {[%clk 0:00:21]}  Ka7 {[%clk 0:00:13]} 28. Kd2 {[%clk 0:00:20]}  Qg7 {[%clk 0:00:12]} 29. e5 {[%clk 0:00:20]}  Ng8 {[%clk 0:00:11]} 30. Ke3 {[%clk 0:00:16]}  Ne7 {[%clk 0:00:11]} 31. g4 {[%clk 0:00:15]}  Qf8 {[%clk 0:00:08]} 32. Qf6 {[%clk 0:00:14]}  Ng8 {[%clk 0:00:08]} 33. Qg5 {[%clk 0:00:15]}  Qc5+ {[%clk 0:00:08]} 34. Kd3 {[%clk 0:00:14]}  Qf8 {[%clk 0:00:07]} 35. Be4 {[%clk 0:00:13]}  f6 {[%clk 0:00:06]} 36. exf6 {[%clk 0:00:12]}  Nxf6 {[%clk 0:00:07]} 37. Bf3 {[%clk 0:00:10]}  Qe7 {[%clk 0:00:04]} 38. Qe5 {[%clk 0:00:10]}  Qh7+ {[%clk 0:00:04]} 39. Ke3 {[%clk 0:00:07]}  Qe7 {[%clk 0:00:03]} 40. dxe6 {[%clk 0:00:07]}  Bxf3 {[%clk 0:00:02]} 41. Kxf3 {[%clk 0:00:08]}  dxe6 {[%clk 0:00:02]} 42. Ne4 {[%clk 0:00:08]}  Ne8 {[%clk 0:00:02]} 43. g5 {[%clk 0:00:08]}  Qd7 {[%clk 0:00:02]} 44. Kg4 {[%clk 0:00:07]}  Qd1+ {[%clk 0:00:02]} 45. Kh4 {[%clk 0:00:06]}  Qh1+ {[%clk 0:00:03]} 46. Kg3 {[%clk 0:00:06]}  Qg1+ {[%clk 0:00:03]} 47. Kf3 {[%clk 0:00:07]}  Qf1+ {[%clk 0:00:03]} 48. Nf2 {[%clk 0:00:07]}  Qxc4 {[%clk 0:00:04]} 49. g6 {[%clk 0:00:06]}  Qb3+ {[%clk 0:00:03]} 50. Kg4 {[%clk 0:00:05]}  Qc2 {[%clk 0:00:04]} 51. Ne4 {[%clk 0:00:04]}  Qg2+ {[%clk 0:00:04]} 52. Ng3 {[%clk 0:00:04]}  Qc2 {[%clk 0:00:04]} 53. Qxe6 {[%clk 0:00:03]}  Qd1+ {[%clk 0:00:02]} 54. Kg5 {[%clk 0:00:03]}  Nd6 {[%clk 0:00:02]} 55. g7 {[%clk 0:00:02]}  Qg1 {[%clk 0:00:02]} 56. Qg4 {[%clk 0:00:02]}  Qc5+ {[%clk 0:00:02]} 57. Kg6 {[%clk 0:00:02]}  Qc4 {[%clk 0:00:02]} 58. Kh7 {[%clk 0:00:02]}  Qf7 {[%clk 0:00:03]} 59. Qg6 {[%clk 0:00:02]}  Qe7 {[%clk 0:00:03]} 60. Kh8 {[%clk 0:00:02]}  Qh4+ {[%clk 0:00:03]} 61. Nh5 {[%clk 0:00:02]}  Ne4 {[%clk 0:00:02]} 62. g8=Q {[%clk 0:00:02]}  Ng3 {[%clk 0:00:03]} 63. Qxg3 {[%clk 0:00:02]}  Qxh5+ {[%clk 0:00:04]} 64. Qh7 {[%clk 0:00:02]}  Qe8+ {[%clk 0:00:04]} 65. Qgg8 {[%clk 0:00:03]}  Qe3 {[%clk 0:00:05]} 66. Qxc7# {[%clk 0:00:03]} 1-0

[Event "December 5 Early 2023"]
[Site "https://www.chess.com"]
[Date "2023.12.05"]
[Round "8"]
[White "Movahed, Sina"]
[Black "Nakamura, Hikaru"]
[Result "0-1"]
[Board "10"]
[TimeControl "180+1"]
[WhiteFideId "42520835"]
[BlackFideId "2016192"]
[WhiteElo "2931"]
[BlackElo "3242"]
[WhiteTeam "IRI"]
[BlackTeam "USA"]
[WhiteClock "0:00:06"]
[BlackClock "0:00:04"]

1. Nf3 {[%clk 0:03:00]}  g6 {[%clk 0:02:59]} 2. e4 {[%clk 0:02:58]}  Bg7 {[%clk 0:03:00]} 3. d4 {[%clk 0:02:58]}  a6 {[%clk 0:02:59]} 4. c4 {[%clk 0:02:56]}  d6 {[%clk 0:02:51]} 5. Nc3 {[%clk 0:02:56]}  c6 {[%clk 0:02:45]} 6. h3 {[%clk 0:02:43]}  b5 {[%clk 0:02:45]} 7. Bd3 {[%clk 0:02:43]}  Nf6 {[%clk 0:02:45]} 8. O-O {[%clk 0:02:41]}  O-O {[%clk 0:02:44]} 9. Re1 {[%clk 0:02:41]}  Nfd7 {[%clk 0:02:41]} 10. Be3 {[%clk 0:02:36]}  b4 {[%clk 0:02:37]} 11. Na4 {[%clk 0:02:30]}  a5 {[%clk 0:02:37]} 12. Rc1 {[%clk 0:02:28]}  Ba6 {[%clk 0:02:29]} 13. c5 {[%clk 0:02:18]}  Bb5 {[%clk 0:02:25]} 14. cxd6 {[%clk 0:01:57]}  exd6 {[%clk 0:02:26]} 15. b3 {[%clk 0:01:51]}  Na6 {[%clk 0:02:26]} 16. Bxb5 {[%clk 0:01:49]}  cxb5 {[%clk 0:02:26]} 17. Nb2 {[%clk 0:01:50]}  d5 {[%clk 0:02:27]} 18. e5 {[%clk 0:01:48]}  Nc7 {[%clk 0:02:27]} 19. Nd3 {[%clk 0:01:48]}  Ne6 {[%clk 0:02:27]} 20. Nf4 {[%clk 0:01:49]}  Nxf4 {[%clk 0:02:26]} 21. Bxf4 {[%clk 0:01:50]}  Re8 {[%clk 0:02:27]} 22. Rc6 {[%clk 0:01:43]}  Nf8 {[%clk 0:02:26]} 23. Qd2 {[%clk 0:01:36]}  Ne6 {[%clk 0:02:18]} 24. Bg5 {[%clk 0:01:32]}  Qd7 {[%clk 0:02:12]} 25. Rd6 {[%clk 0:01:27]}  Qb7 {[%clk 0:02:12]} 26. Bh6 {[%clk 0:01:25]}  Bxh6 {[%clk 0:01:50]} 27. Qxh6 {[%clk 0:01:26]}  Rac8 {[%clk 0:01:51]} 28. h4 {[%clk 0:01:08]}  Rc2 {[%clk 0:01:38]} 29. h5 {[%clk 0:00:58]}  a4 {[%clk 0:01:25]} 30. hxg6 {[%clk 0:00:52]}  fxg6 {[%clk 0:01:23]} 31. Nh2 {[%clk 0:00:48]}  Qg7 {[%clk 0:01:17]} 32. Qh4 {[%clk 0:00:46]}  h5 {[%clk 0:01:12]} 33. Nf3 {[%clk 0:00:37]}  Rxa2 {[%clk 0:01:06]} 34. Ng5 {[%clk 0:00:36]}  Nf8 {[%clk 0:01:05]} 35. Qh3 {[%clk 0:00:28]}  Qe7 {[%clk 0:01:00]} 36. Qg3 {[%clk 0:00:23]}  a3 {[%clk 0:00:51]} 37. Nf3 {[%clk 0:00:17]}  Qxd6 {[%clk 0:00:30]} 38. exd6 {[%clk 0:00:18]}  Rxe1+ {[%clk 0:00:30]} 39. Nxe1 {[%clk 0:00:18]}  Re2 {[%clk 0:00:31]} 40. d7 {[%clk 0:00:15]}  Rxe1+ {[%clk 0:00:31]} 41. Kh2 {[%clk 0:00:16]}  Nxd7 {[%clk 0:00:31]} 42. Qxg6+ {[%clk 0:00:17]}  Kf8 {[%clk 0:00:32]} 43. Qd6+ {[%clk 0:00:17]}  Ke8 {[%clk 0:00:32]} 44. Qxb4 {[%clk 0:00:17]}  Re4 {[%clk 0:00:14]} 45. Qxa3 {[%clk 0:00:17]}  Rxd4 {[%clk 0:00:15]} 46. Qa6 {[%clk 0:00:16]}  b4 {[%clk 0:00:13]} 47. Qg6+ {[%clk 0:00:16]}  Kd8 {[%clk 0:00:14]} 48. Qxh5 {[%clk 0:00:12]}  Rd3 {[%clk 0:00:13]} 49. g4 {[%clk 0:00:12]}  Rxb3 {[%clk 0:00:10]} 50. g5 {[%clk 0:00:13]}  Rb2 {[%clk 0:00:05]} 51. Kg2 {[%clk 0:00:12]}  Rc2 {[%clk 0:00:03]} 52. g6 {[%clk 0:00:12]}  Nf6 {[%clk 0:00:04]} 53. Qh8+ {[%clk 0:00:11]}  Ke7 {[%clk 0:00:05]} 54. Qg7+ {[%clk 0:00:12]}  Ke6 {[%clk 0:00:05]} 55. Qf7+ {[%clk 0:00:12]}  Kf5 {[%clk 0:00:06]} 56. g7 {[%clk 0:00:13]}  Rc8 {[%clk 0:00:07]} 57. Qb7 {[%clk 0:00:13]}  Rg8 {[%clk 0:00:07]} 58. Kf3 {[%clk 0:00:14]}  b3 {[%clk 0:00:06]} 59. Qc7 {[%clk 0:00:12]}  b2 {[%clk 0:00:06]} 60. Qc2+ {[%clk 0:00:13]}  Ke6 {[%clk 0:00:06]} 61. Qxb2 {[%clk 0:00:12]}  Rxg7 {[%clk 0:00:07]} 62. Ke3 {[%clk 0:00:13]}  Re7 {[%clk 0:00:07]} 63. f3 {[%clk 0:00:13]}  Kf7+ {[%clk 0:00:07]} 64. Kf4 {[%clk 0:00:13]}  Re6 {[%clk 0:00:06]} 65. Kf5 {[%clk 0:00:14]}  Ng8 {[%clk 0:00:06]} 66. Qd4 {[%clk 0:00:13]}  Ne7+ {[%clk 0:00:07]} 67. Kg4 {[%clk 0:00:13]}  Rg6+ {[%clk 0:00:07]} 68. Kf4 {[%clk 0:00:12]}  Rf6+ {[%clk 0:00:08]} 69. Kg4 {[%clk 0:00:12]}  Rg6+ {[%clk 0:00:08]} 70. Kh3 {[%clk 0:00:12]}  Rg3+ {[%clk 0:00:08]} 71. Kh2 {[%clk 0:00:13]}  Rxf3 {[%clk 0:00:07]} 72. Qe5 {[%clk 0:00:13]}  Rf5 {[%clk 0:00:08]} 73. Qd6 {[%clk 0:00:14]}  Rf6 {[%clk 0:00:08]} 74. Qd7 {[%clk 0:00:14]}  Rf4 {[%clk 0:00:08]} 75. Kg3 {[%clk 0:00:14]}  Re4 {[%clk 0:00:09]} 76. Kf3 {[%clk 0:00:14]}  Kf6 {[%clk 0:00:09]} 77. Qd6+ {[%clk 0:00:14]}  Re6 {[%clk 0:00:10]} 78. Qf4+ {[%clk 0:00:14]}  Nf5 {[%clk 0:00:10]} 79. Qh2 {[%clk 0:00:13]}  Re3+ {[%clk 0:00:09]} 80. Kf2 {[%clk 0:00:14]}  d4 {[%clk 0:00:08]} 81. Qh8+ {[%clk 0:00:14]}  Ke6 {[%clk 0:00:09]} 82. Qe8+ {[%clk 0:00:15]}  Kd5 {[%clk 0:00:09]} 83. Qb5+ {[%clk 0:00:15]}  Ke4 {[%clk 0:00:09]} 84. Qc6+ {[%clk 0:00:15]}  Ke5 {[%clk 0:00:09]} 85. Qc7+ {[%clk 0:00:15]}  Ke4 {[%clk 0:00:08]} 86. Qc6+ {[%clk 0:00:16]}  Kf4 {[%clk 0:00:08]} 87. Qc7+ {[%clk 0:00:16]}  Re5 {[%clk 0:00:08]} 88. Qc1+ {[%clk 0:00:16]}  Ne3 {[%clk 0:00:09]} 89. Ke2 {[%clk 0:00:09]}  Rd5 {[%clk 0:00:06]} 90. Kd3 {[%clk 0:00:09]}  Ke5 {[%clk 0:00:06]} 91. Qc7+ {[%clk 0:00:09]}  Ke6 {[%clk 0:00:07]} 92. Qc6+ {[%clk 0:00:09]}  Rd6 {[%clk 0:00:08]} 93. Qe4+ {[%clk 0:00:10]}  Kd7 {[%clk 0:00:09]} 94. Qe5 {[%clk 0:00:10]}  Kc6 {[%clk 0:00:07]} 95. Ke4 {[%clk 0:00:09]}  Nc4 {[%clk 0:00:06]} 96. Qe8+ {[%clk 0:00:08]}  Kc5 {[%clk 0:00:05]} 97. Kd3 {[%clk 0:00:09]}  Nb2+ {[%clk 0:00:05]} 98. Kc2 {[%clk 0:00:09]}  Nc4 {[%clk 0:00:06]} 99. Kd3 {[%clk 0:00:09]}  Nb6 {[%clk 0:00:06]} 100. Qe5+ {[%clk 0:00:09]}  Kc6 {[%clk 0:00:06]} 101. Qe4+ {[%clk 0:00:09]}  Kc7 {[%clk 0:00:06]} 102. Qe7+ {[%clk 0:00:09]}  Nd7 {[%clk 0:00:07]} 103. Qe1 {[%clk 0:00:09]}  Nc5+ {[%clk 0:00:07]} 104. Kc4 {[%clk 0:00:09]}  Ne6 {[%clk 0:00:06]} 105. Qa5+ {[%clk 0:00:09]}  Kd7 {[%clk 0:00:07]} 106. Kd3 {[%clk 0:00:09]}  Rc6 {[%clk 0:00:06]} 107. Qd5+ {[%clk 0:00:09]}  Kc7 {[%clk 0:00:07]} 108. Qe5+ {[%clk 0:00:09]}  Kb6 {[%clk 0:00:07]} 109. Qb8+ {[%clk 0:00:10]}  Kc5 {[%clk 0:00:07]} 110. Qe5+ {[%clk 0:00:09]}  Kb6 {[%clk 0:00:07]} 111. Qb8+ {[%clk 0:00:10]}  Ka6 {[%clk 0:00:08]} 112. Qa8+ {[%clk 0:00:09]}  Kb5 {[%clk 0:00:08]} 113. Qb7+ {[%clk 0:00:09]}  Kc5 {[%clk 0:00:09]} 114. Kd2 {[%clk 0:00:08]}  Nc7 {[%clk 0:00:07]} 115. Qb3 {[%clk 0:00:08]}  Nb5 {[%clk 0:00:05]} 116. Qc2+ {[%clk 0:00:08]}  Kb6 {[%clk 0:00:05]} 117. Qe4 {[%clk 0:00:08]}  Rc3 {[%clk 0:00:06]} 118. Qe6+ {[%clk 0:00:08]}  Kc5 {[%clk 0:00:07]} 119. Qe5+ {[%clk 0:00:08]}  Kc4 {[%clk 0:00:07]} 120. Qe6+ {[%clk 0:00:09]}  Kb4 {[%clk 0:00:08]} 121. Qe7+ {[%clk 0:00:08]}  Kb3 {[%clk 0:00:08]} 122. Qe6+ {[%clk 0:00:08]}  Ka4 {[%clk 0:00:08]} 123. Qa6+ {[%clk 0:00:09]}  Kb4 {[%clk 0:00:08]} 124. Qf6 {[%clk 0:00:08]}  Rc5 {[%clk 0:00:07]} 125. Qe7 {[%clk 0:00:08]}  Kc4 {[%clk 0:00:06]} 126. Qf7+ {[%clk 0:00:08]}  Kb4 {[%clk 0:00:06]} 127. Qa2 {[%clk 0:00:09]}  Rc3 {[%clk 0:00:05]} 128. Qd5 {[%clk 0:00:09]}  d3 {[%clk 0:00:04]} 129. Qd6+ {[%clk 0:00:06]}  Nxd6 {[%clk 0:00:04]} 0-1